fUST/lending_fUST_20250701
["ID","MTS","AMOUNT","RATE_DAILY","PERIOD"]
[368741694,1751340644488,-151.0,0.00020911,2]
[368741695,1751340644498,-460.0,0.00020911,2]
[368741696,1751340644511,-567.84,0.00020911,2]
[368741697,1751340644522,-460.0,0.00020912,2]
[368741698,1751340644711,-151.0,0.00020912,2]
[368741699,1751340644725,-151.0,0.00020912,2]
[368741700,1751340644735,-151.0,0.00020912,2]
[368741701,1751340644744,-151.0,0.00020912,2]
[368741702,1751340644754,-151.0,0.00020912,2]
[368741703,1751340644764,-153.582542,0.00020912,2]
[368741704,1751340644773,-151.0,0.00020912,2]
[368741705,1751340644784,-151.0,0.00020912,2]
[368741706,1751340644794,-151.346108,0.00020912,2]
[368741707,1751340644804,-151.774939,0.00020912,2]
[368741708,1751340644814,-153.070993,0.00020912,2]
[368741709,1751340644824,-154.222511,0.00020912,2]
[368741710,1751340644834,-591.44,0.00020912,2]
[368741711,1751340644844,-151.0,0.00020912,2]
[368741712,1751340644854,-151.432419,0.00020912,2]
[368741713,1751340644864,-151.0,0.00020912,2]
[368741714,1751340644873,-460.0,0.00020912,2]
[368741715,1751340644883,-151.0,0.00020912,2]
[368741716,1751340644892,-151.0,0.00020912,2]
[368741717,1751340644901,-420.145134,0.00020912,2]
[368741718,1751340644911,-420.145134,0.00020912,2]
[368741719,1751340644934,-501.62056851,0.00020912,2]
[368741720,1751340644957,-460.0,0.00020912,2]
[368741721,1751340644980,-1357.23,0.00020912,2]
[368741722,1751340645002,-704.06,0.00020912,2]
[368741723,1751340645024,-1177.3,0.00020912,2]
[368741724,1751340645045,-154.184596,0.00020912,2]
[368741725,1751340645066,-151.553602,0.00020912,2]
[368741726,1751340645087,-2497.72,0.00020913,2]
[368741727,1751340645109,-989.6,0.00020913,2]
[368741728,1751340645131,-151.0,0.00020913,2]
[368741729,1751340645149,-151.0,0.00020913,2]
[368741730,1751340645159,-151.0,0.00020913,2]
[368741731,1751340645168,-2943.3058629,0.00020969,4]
[368741732,1751340645178,-3000.0,0.00021,2]
[368741733,1751340645188,-10000.0,0.00021,5]
[368741734,1751340645198,-87151.97798978,0.00021,7]
[368741735,1751340645208,-151.0,0.00021,2]
[368741736,1751340645217,-151.0,0.00021,2]
[368741737,1751340645227,-151.981184,0.00021,2]
[368741738,1751340645237,-151.0,0.00021,2]
[368741739,1751340645247,-182.542265,0.00021,2]
[368741740,1751340645257,-151.0,0.00021,2]
[368741741,1751340645266,-3000.0,0.0002101,2]
[368741742,1751340645275,-151.0,0.0002101,2]
[368741743,1751340645285,-151.0,0.0002101,2]
[368741744,1751340645294,-151.0,0.0002101,2]
[368741745,1751340645304,-151.0,0.0002101,2]
[368741746,1751340645313,-3000.0,0.0002102,2]
[368741747,1751340645323,-150.0,0.0002102,2]
[368741748,1751340645332,-3000.0,0.0002103,2]
[368741749,1751340645342,-3000.0,0.0002104,2]
[368741750,1751340645351,-2500.0,0.00021047,2]
[368741751,1751340645360,-3000.0,0.0002105,2]
[368741752,1751340645370,-151.0,0.0002105,2]
[368741753,1751340645379,-3000.0,0.0002106,2]
[368741754,1751340645388,-3000.0,0.0002107,2]
[368741755,1751340645397,-3000.0,0.0002108,2]
[368741757,1751340645407,-215.0738,0.00021084,2]
[368741759,1751340645416,-3000.0,0.0002109,2]
[368741761,1751340645426,-500.0,0.00021095,15]
[368741763,1751340645435,-3000.0,0.000211,2]
[368741765,1751340645444,-160.0,0.000211,4]
[368741767,1751340645454,-151.487986,0.00021107,2]
[368741769,1751340645463,-151.0,0.00021107,2]
[368741772,1751340645473,-151.738763,0.00021107,2]
[368741774,1751340645483,-3000.0,0.0002111,2]
[368741776,1751340645493,-151.0,0.0002111,2]
[368741778,1751340645502,-151.0,0.0002111,2]
[368741780,1751340645515,-381.0,0.00021113,2]
[368741782,1751340645525,-3000.0,0.0002112,2]
[368741784,1751340645534,-151.0,0.0002112,2]
[368741786,1751340645544,-151.0,0.0002112,2]
[368741788,1751340645553,-165.255691,0.0002112,2]
[368741790,1751340645562,-151.0,0.0002112,2]
[368741792,1751340645572,-151.0,0.0002112,2]
[368741794,1751340645582,-3831.978616,0.0002113,2]
[368741796,1751340645591,-2943.3058629,0.00021176,4]
[368741798,1751340645601,-1006.73,0.00021182,2]
[368741800,1751340645611,-1211.7,0.00021182,2]
[368741802,1751340645620,-151.0,0.00021182,2]
[368741804,1751340645630,-809.65,0.00021182,2]
[368741806,1751340645640,-151.0,0.00021182,2]
[368741808,1751340645650,-151.0,0.00021182,2]
[368741810,1751340645659,-151.0,0.00021182,2]
[368741812,1751340645669,-699.24,0.00021182,2]
[368741814,1751340645679,-460.0,0.00021183,2]
[368741816,1751340645688,-995.03,0.00021183,2]
[368741818,1751340645697,-1061.22,0.00021183,2]
[368741820,1751340645707,-1434.14,0.00021183,2]
[368741822,1751340645717,-558.97,0.00021183,2]
[368741824,1751340645727,-460.0,0.00021184,2]
[368741826,1751340645736,-955.88,0.00021184,2]
[368741828,1751340645746,-460.0,0.00021184,2]
[368741830,1751340645755,-2784.47,0.00021184,2]
[368741832,1751340645764,-275.7732173,0.00021185,2]
[368741834,1751340645774,-567.84,0.00021185,2]
[368741836,1751340645784,-460.0,0.00021186,2]
[368741838,1751340645793,-591.44,0.00021186,2]
[368741840,1751340645803,-460.0,0.00021186,2]
[368741842,1751340645812,-460.0,0.00021186,2]
[368741843,1751340645822,-1357.23,0.00021186,2]
[368741845,1751340645831,-704.06,0.00021186,2]
[368741847,1751340645840,-1177.3,0.00021186,2]
[368741849,1751340645850,-2497.72,0.00021187,2]
[368741852,1751340645860,-989.6,0.00021187,2]
[368741854,1751340645869,-205.2,0.0002121,5]
[368741856,1751340645879,-500.0,0.0002126,2]
[368741858,1751340645889,-151.0,0.000213,3]
[368741860,1751340645898,-847.53272281,0.000213,3]
[368741862,1751340645907,-160.0,0.000213,3]
[368741864,1751340645917,-228.0,0.0002137,3]
[368741866,1751340645927,-2943.3058629,0.00021383,5]
[368741868,1751340645936,-217.82898755,0.00021399,2]
[368741870,1751340645946,-12500.0,0.00021444,2]
[368741872,1751340645956,-1006.73,0.00021456,2]
[368741874,1751340645965,-1211.7,0.00021456,2]
[368741876,1751340645974,-809.65,0.00021456,2]
[368741878,1751340645984,-699.24,0.00021456,2]
[368741880,1751340645993,-460.0,0.00021457,2]
[368741882,1751340646003,-995.03,0.00021457,2]
[368741883,1751340646012,-1061.22,0.00021457,2]
[368741885,1751340646022,-1434.14,0.00021457,2]
[368741887,1751340646031,-558.97,0.00021457,2]
[368741889,1751340646158,-460.0,0.00021458,2]
[368741891,1751340646168,-955.88,0.00021458,2]
[368741893,1751340646178,-460.0,0.00021458,2]
[368741895,1751340646187,-2784.47,0.00021458,2]
[368741897,1751340646196,-151.0,0.00021459,2]
[368741899,1751340646206,-151.0,0.00021459,2]
[368741901,1751340646215,-151.0,0.00021459,2]
[368741903,1751340646225,-151.0,0.00021459,2]
[368741905,1751340646234,-151.0,0.00021459,2]
[368741907,1751340646244,-151.0,0.00021459,2]
[368741909,1751340646253,-567.84,0.00021459,2]
[368741911,1751340646264,-460.0,0.0002146,2]
[368741913,1751340646273,-591.44,0.0002146,2]
[368741915,1751340646284,-460.0,0.0002146,2]
[368741917,1751340646294,-460.0,0.0002146,2]
[368741919,1751340646304,-1357.23,0.0002146,2]
[368741921,1751340646313,-704.06,0.0002146,2]
[368741923,1751340646323,-1177.3,0.0002146,2]
[368741925,1751340646333,-151.0,0.00021461,2]
[368741927,1751340646342,-151.0,0.00021461,2]
[368741930,1751340646352,-151.0,0.00021461,2]
[368741932,1751340646363,-151.0,0.00021461,2]
[368741934,1751340646372,-153.336237,0.00021461,2]
[368741937,1751340646395,-151.938374,0.00021461,2]
[368741939,1751340646407,-167.642919,0.00021461,2]
[368741940,1751340646417,-151.0,0.00021461,2]
[368741941,1751340646427,-2497.72,0.00021461,2]
[368741942,1751340646437,-989.6,0.00021461,2]
[368741943,1751340646447,-154.597053,0.00021461,2]
[368741944,1751340646457,-154.208591,0.00021461,2]
[368741945,1751340646467,-151.0,0.00021461,2]
[368741946,1751340646478,-242.17251,0.00021461,2]
[368741947,1751340646488,-420.145134,0.00021461,2]
[368741950,1751340646498,-420.145134,0.00021461,2]
[368741951,1751340646509,-500.8017279,0.00021473,2]
[368741952,1751340646519,-500.0,0.00021473,2]
[368741953,1751340646530,-500.58730303,0.00021473,2]
[368741954,1751340646539,-503.73763114,0.00021473,2]
[368741956,1751340646550,-500.0,0.00021473,2]
[368741957,1751340646561,-500.0,0.00021473,2]
[368741958,1751340646573,-500.0,0.00021473,2]
[368741959,1751340646583,-500.31514716,0.00021473,2]
[368741960,1751340646593,-500.0,0.00021473,2]
[368741961,1751340646603,-500.0,0.00021473,2]
[368741962,1751340646613,-521.35283505,0.00021473,2]
[368741963,1751340646623,-500.0,0.00021473,2]
[368741964,1751340646633,-500.0,0.00021473,2]
[368741965,1751340646642,-500.0,0.00021473,2]
[368741966,1751340646653,-500.0,0.00021473,2]
[368741967,1751340646663,-500.0,0.00021473,2]
[368741968,1751340646673,-500.0,0.00021473,2]
[368741969,1751340646683,-500.0,0.00021473,2]
[368741970,1751340646693,-500.0,0.00021473,2]
[368741971,1751340646704,-600.0,0.00021473,2]
[368741972,1751340646714,-195.45290185,0.00021473,2]
[368741973,1751340646724,-500.0,0.00021473,2]
[368741974,1751340646734,-500.0,0.00021473,2]
[368741975,1751340646745,-122136.31501123,0.00021499,2]
[368741976,1751340646865,-1013.67909539,0.00021499,2]
[368741977,1751340646877,-1755.79499243,0.00021499,2]
[368741978,1751340646888,-1033.58533371,0.00021499,2]
[368741979,1751340646941,-151.0,0.00020912,2]
[368741980,1751340646951,-610.70882873,0.00021499,2]
[368741981,1751340646968,-84311.95792534,0.00021499,2]
[368741982,1751340648855,-968.222,0.00020692,2]
[368741983,1751340648866,-152.596746,0.00020912,2]
[368741984,1751340648877,-151.0,0.0002107,2]
[368741985,1751340648887,-63831.95681169,0.00021499,2]
[368741986,1751340648899,-266.18676446,0.00021499,2]
[368741987,1751340648912,-1258.39944735,0.00021499,2]
[368741988,1751340648924,-262.248948,0.00021499,2]
[368741989,1751340649282,-287.87594631,0.00018167,2]
[368741990,1751340649292,-329.92535631,0.00018167,2]
[368741991,1751340649302,-31.15869738,0.00018167,2]
[368741992,1751340649318,-614.88623311,0.00018167,2]
[368741993,1751340649333,-500.0,0.00018167,2]
[368741994,1751340649343,-500.0,0.00018444,2]
[368741995,1751340649353,-483.51379189,0.00018444,2]
[368741996,1751340649368,-16.48620811,0.00018444,2]
[368741997,1751340649384,-500.0,0.00018444,2]
[368741998,1751340649395,-500.0,0.00018444,2]
[368741999,1751340649405,-500.0,0.00018444,2]
[368742000,1751340649415,-500.0,0.00018444,2]
[368742001,1751340649424,-250.0,0.00018444,2]
[368742002,1751340649435,-500.0,0.00018444,2]
[368742003,1751340649445,-3209.22,0.0002099,10]
[368742004,1751340649455,-19950.69244075,0.00021499,2]
[368742005,1751340649464,-151.0,0.00021499,2]
[368742006,1751340649474,-151.0,0.00021499,2]
[368742007,1751340649484,-151.0,0.00021499,2]
[368742008,1751340649494,-151.0,0.00021499,2]
[368742009,1751340649505,-154.393057,0.00021499,2]
[368742010,1751340649519,-151.0,0.00021499,2]
[368742011,1751340649529,-151.0,0.00021499,2]
[368742012,1751340649538,-151.0,0.00021499,2]
[368742013,1751340649548,-205.2,0.0002152,5]
[368742014,1751340649558,-1412.321306,0.00021541,4]
[368742015,1751340649568,-160.0,0.0002155,5]
[368742016,1751340649578,-2943.3058629,0.0002159,5]
[368742017,1751340649589,-1747.0,0.0002159,2]
[368742018,1751340649598,-318.0,0.0002159,2]
[368742019,1751340649609,-318.0,0.0002159,2]
[368742020,1751340649619,-318.0,0.0002159,2]
[368742021,1751340649628,-1747.0,0.0002159,2]
[368742022,1751340649639,-1747.0,0.0002159,2]
[368742023,1751340649649,-1747.0,0.0002159,2]
[368742024,1751340649659,-1747.0,0.0002159,2]
[368742025,1751340649669,-1747.0,0.0002159,2]
[368742026,1751340649679,-1747.0,0.0002159,2]
[368742027,1751340649689,-1747.0,0.0002159,2]
[368742028,1751340649699,-948.8272071,0.0002159,2]
[368742029,1751340661552,400.0,0.00024956,60]
[368742033,1751340913507,294.838079,0.00013699,2]
[368742034,1751340933894,-151.0,0.00018067,2]
[368742035,1751340933917,-300.0,0.00018166,2]
[368742036,1751340933940,-1200.0,0.00018166,2]
[368742037,1751340933964,-460.0,0.00018167,2]
[368742038,1751340933988,-529.20425597,0.00018167,2]
[368742039,1751340934011,-460.0,0.00018167,2]
[368742040,1751340934034,-467.55501162,0.00018167,2]
[368742041,1751340934055,-316.14813155,0.00018167,2]
[368742042,1751340934079,-461.81948516,0.00018167,2]
[368742043,1751340934101,-460.0,0.00018167,2]
[368742044,1751340934123,-572.32194134,0.00018167,2]
[368742045,1751340934150,-462.8916182,0.00018167,2]
[368742046,1751340934175,-460.0,0.00018167,2]
[368742047,1751340934198,-700.48,0.00018167,2]
[368742048,1751340934221,-460.0,0.00018167,2]
[368742049,1751340934243,-460.0,0.00018167,2]
[368742050,1751340934266,-460.0,0.00018167,2]
[368742051,1751340934289,-460.0,0.00018167,2]
[368742052,1751340934311,-460.0,0.00018167,2]
[368742053,1751340934332,-460.0,0.00018167,2]
[368742054,1751340934353,-460.0,0.00018167,2]
[368742055,1751340934375,-460.0,0.00018167,2]
[368742056,1751340934397,-460.0,0.00018167,2]
[368742057,1751340934420,-540.19,0.00018167,2]
[368742058,1751340934442,-460.0,0.00018167,2]
[368742059,1751340934463,-460.0,0.00018167,2]
[368742060,1751340934485,-460.0,0.00018167,2]
[368742061,1751340934507,-460.0,0.00018167,2]
[368742062,1751340934529,-460.0,0.00018167,2]
[368742063,1751340934551,-460.0,0.00018167,2]
[368742064,1751340934573,-461.42,0.00018167,2]
[368742065,1751340934594,-460.0,0.00018167,2]
[368742066,1751340934619,-460.0,0.00018167,2]
[368742067,1751340934643,-460.0,0.00018167,2]
[368742068,1751340934665,-460.0,0.00018167,2]
[368742069,1751340934688,-460.0,0.00018167,2]
[368742070,1751340934715,-520.14,0.00018167,2]
[368742071,1751340934736,-460.0,0.00018167,2]
[368742072,1751340934757,-460.0,0.00018167,2]
[368742073,1751340934778,-207.08451995,0.00018167,2]
[368742074,1751340934799,-539.75,0.00018167,2]
[368742075,1751340934949,-460.0,0.00018167,2]
[368742076,1751340934972,-511.05,0.00018167,2]
[368742077,1751340934994,-564.48974294,0.00018167,2]
[368742078,1751340935017,-460.0,0.00018167,2]
[368742079,1751340935039,-460.0,0.00018167,2]
[368742080,1751340935062,-154.45529327,0.00018167,2]
[368742081,1751340976927,-576.88035676,0.0001807,2]
[368742082,1751340976950,-300.0,0.00018166,2]
[368742083,1751340976972,-819.0,0.00018166,2]
[368742084,1751340976994,-305.54470673,0.00018167,2]
[368742085,1751340977016,-581.75,0.00018167,2]
[368742086,1751340977039,-709.9,0.00018167,2]
[368742087,1751340977064,-460.0,0.00018167,2]
[368742088,1751340977087,-460.0,0.00018167,2]
[368742089,1751340977110,-547.12,0.00018167,2]
[368742090,1751340977137,-460.0,0.00018167,2]
[368742091,1751340977159,-460.0,0.00018167,2]
[368742092,1751340977183,-1124.97,0.00018167,2]
[368742093,1751340977206,-460.0,0.00018167,2]
[368742094,1751340977228,-460.0,0.00018167,2]
[368742095,1751340977251,-460.0,0.00018167,2]
[368742096,1751340977272,-460.0,0.00018167,2]
[368742097,1751340977295,-460.0,0.00018167,2]
[368742098,1751340977316,-159.24225901,0.00018167,2]
[368742099,1751340977338,-460.0,0.00018167,2]
[368742100,1751340977359,-275.5926775,0.00018167,2]
[368742102,1751341051096,-300.0,0.00018166,2]
[368742103,1751341051120,-184.4073225,0.00018167,2]
[368742104,1751341051142,-1003.2660744,0.00018167,2]
[368742105,1751341051164,-460.0,0.00018167,2]
[368742106,1751341051187,-460.0,0.00018167,2]
[368742107,1751341051209,-460.0,0.00018167,2]
[368742108,1751341051230,-460.0,0.00018167,2]
[368742109,1751341051252,-460.0,0.00018167,2]
[368742110,1751341051274,-460.0,0.00018167,2]
[368742111,1751341051296,-460.0,0.00018167,2]
[368742112,1751341051320,-292.3266031,0.00018167,2]
[368742114,1751341098420,2729.25412322,0.00016082,2]
[368742115,1751341098891,2729.25412322,0.0001637,2]
[368742116,1751341099199,2729.25412322,0.00016477,2]
[368742117,1751341101275,2729.25412322,0.00016975,2]
[368742118,1751341102065,2729.25412322,0.00017257,2]
[368742119,1751341102540,2729.25412322,0.0001747,2]
[368742120,1751341102885,2729.25412322,0.00017753,2]
[368742121,1751341103184,2729.25412322,0.0001785,2]
[368742137,1751341230495,-241.03639327,0.00018067,2]
[368742140,1751341234138,-163.89413252,0.00018067,2]
[368742142,1751341237780,-99.83978634,0.00018067,2]
[368742147,1751341497335,-229.14150522,0.00018067,2]
[368742148,1751341498950,-152.0,0.00018067,2]
[368742149,1751341500659,-121.14641685,0.00018067,2]
[368742150,1751341524091,-158.63446682,0.00018066,2]
[368742151,1751341528017,-233.83001848,0.00018066,2]
[368742152,1751341529612,-89.03479102,0.00018066,2]
[368742153,1751341537135,-300.0,0.00018164,2]
[368742154,1751341537156,-156.0,0.00018164,2]
[368742155,1751341537178,-304.93643536,0.00018165,2]
[368742157,1751341557528,-287.99077554,0.00018072,2]
[368742158,1751341560044,-183.32674217,0.00018072,2]
[368742159,1751341562247,-200.597845,0.00018072,2]
[368742163,1751341624921,164.0,0.00018,2]
[368742164,1751341633090,-300.0,0.00018164,2]
[368742165,1751341633111,-158.70840115,0.00018165,2]
[368742166,1751341633133,-460.0,0.00018165,2]
[368742167,1751341633154,-500.0,0.00018165,2]
[368742168,1751341633176,-73.91008445,0.00018165,2]
[368742169,1751341640812,164.45843458,0.00018,2]
[368742173,1751341735489,7765.89710171,0.00024967,60]
[368742174,1751341794395,-193.96505387,0.00018066,2]
[368742175,1751341797561,-266.17612128,0.00018066,2]
[368742180,1751341832006,-379.26,0.00018157,3]
[368742181,1751341832016,-300.0,0.00018164,2]
[368742182,1751341832026,-426.08991555,0.00018165,2]
[368742183,1751341832036,-246.25031784,0.00018165,2]
[368742184,1751341832046,-460.0,0.00018165,2]
[368742185,1751341832056,-460.0,0.00018165,2]
[368742187,1751341832065,-460.0,0.00018165,2]
[368742188,1751341832075,-371.53066318,0.00018165,2]
[368742189,1751341832085,-460.0,0.00018165,2]
[368742190,1751341832095,-460.0,0.00018165,2]
[368742191,1751341832105,-461.3112557,0.00018165,2]
[368742192,1751341832114,-461.86694041,0.00018165,2]
[368742193,1751341832124,-460.0,0.00018165,2]
[368742194,1751341832133,-460.0,0.00018165,2]
[368742195,1751341832143,-460.0,0.00018165,2]
[368742196,1751341832152,-463.04771251,0.00018165,2]
[368742197,1751341832161,-460.0,0.00018165,2]
[368742198,1751341832171,-460.0,0.00018165,2]
[368742199,1751341832181,-460.0,0.00018165,2]
[368742200,1751341832191,-285.28516186,0.00018165,2]
[368742201,1751341832205,-342.37317284,0.00018165,2]
[368742202,1751341832216,-461.71435027,0.00018165,2]
[368742203,1751341832226,-460.0,0.00018165,2]
[368742204,1751341832237,-460.0,0.00018165,2]
[368742205,1751341832248,-460.0,0.00018165,2]
[368742206,1751341832257,-460.0,0.00018165,2]
[368742207,1751341832267,-460.0,0.00018165,2]
[368742208,1751341832277,-460.0,0.00018165,2]
[368742209,1751341832288,-460.0,0.00018165,2]
[368742210,1751341832298,-460.0,0.00018165,2]
[368742211,1751341832307,-460.0,0.00018165,2]
[368742212,1751341832319,-305.85503739,0.00018165,2]
[368742213,1751341832328,-460.0,0.00018165,2]
[368742214,1751341832338,-460.0,0.00018165,2]
[368742215,1751341832349,-354.12308166,0.00018165,2]
[368742216,1751341832359,-460.0,0.00018165,2]
[368742217,1751341832368,-463.38880114,0.00018165,2]
[368742218,1751341832378,-460.0,0.00018165,2]
[368742219,1751341832387,-174.6574551,0.00018165,2]
[368742220,1751341832397,-460.0,0.00018165,2]
[368742221,1751341832406,-460.0,0.00018165,2]
[368742222,1751341832416,-466.800764,0.00018165,2]
[368742223,1751341832426,-460.0,0.00018165,2]
[368742224,1751341832437,-460.0,0.00018165,2]
[368742225,1751341832447,-460.0,0.00018165,2]
[368742226,1751341832457,-460.0,0.00018165,2]
[368742227,1751341832467,-460.0,0.00018165,2]
[368742228,1751341832476,-572.75784453,0.00018165,2]
[368742229,1751341832486,-1131.01,0.00018165,2]
[368742230,1751341832495,-460.0,0.00018165,2]
[368742231,1751341832506,-460.0,0.00018165,2]
[368742232,1751341832515,-460.0,0.00018165,2]
[368742233,1751341832525,-460.0,0.00018165,2]
[368742234,1751341832534,-460.0,0.00018165,2]
[368742235,1751341832544,-460.0,0.00018165,2]
[368742236,1751341832555,-489.1788895,0.00018166,2]
[368742237,1751341832565,-460.0,0.00018166,2]
[368742238,1751341832575,-460.0,0.00018166,2]
[368742239,1751341832585,-460.0,0.00018166,2]
[368742240,1751341832594,-460.0,0.00018166,2]
[368742241,1751341832604,-460.0,0.00018166,2]
[368742242,1751341832614,-460.0,0.00018166,2]
[368742243,1751341832624,-460.0,0.00018166,2]
[368742244,1751341832634,-402.36914158,0.00018166,2]
[368742245,1751341832643,-460.0,0.00018166,2]
[368742246,1751341832653,-460.0,0.00018166,2]
[368742247,1751341832663,-463.87653953,0.00018166,2]
[368742248,1751341832672,-180.36988184,0.00018166,2]
[368742249,1751341832681,-461.87174859,0.00018166,2]
[368742250,1751341832691,-460.0,0.00018166,2]
[368742251,1751341832701,-460.0,0.00018166,2]
[368742252,1751341832711,-460.0,0.00018166,2]
[368742253,1751341832721,-266.38132981,0.00018166,2]
[368742254,1751341832730,-460.0,0.00018166,2]
[368742255,1751341832740,-460.0,0.00018166,2]
[368742256,1751341832749,-460.0,0.00018166,2]
[368742257,1751341832759,-460.9913879,0.00018166,2]
[368742258,1751341832768,-460.0,0.00018166,2]
[368742259,1751341832778,-460.0,0.00018166,2]
[368742260,1751341832788,-471.25688282,0.00018166,2]
[368742261,1751341832797,-460.0,0.00018166,2]
[368742262,1751341832806,-460.0,0.00018166,2]
[368742263,1751341832816,-465.94497274,0.00018166,2]
[368742264,1751341832825,-460.0,0.00018166,2]
[368742265,1751341832835,-460.0,0.00018166,2]
[368742266,1751341832845,-460.0,0.00018166,2]
[368742267,1751341832854,-460.0,0.00018166,2]
[368742268,1751341832865,-460.0,0.00018166,2]
[368742269,1751341832875,-460.0,0.00018166,2]
[368742270,1751341832885,-460.0,0.00018166,2]
[368742271,1751341832895,-460.0,0.00018166,2]
[368742272,1751341832904,-460.0,0.00018166,2]
[368742273,1751341832915,-460.0,0.00018166,2]
[368742274,1751341832925,-460.0,0.00018166,2]
[368742275,1751341832937,-460.0,0.00018166,2]
[368742276,1751341832946,-460.0,0.00018166,2]
[368742277,1751341832956,-460.0,0.00018166,2]
[368742278,1751341832966,-460.0,0.00018166,2]
[368742279,1751341832977,-460.0,0.00018166,2]
[368742280,1751341832987,-460.0,0.00018166,2]
[368742281,1751341832996,-460.0,0.00018166,2]
[368742282,1751341833005,-460.0,0.00018166,2]
[368742283,1751341833015,-460.0,0.00018166,2]
[368742284,1751341833024,-1409.12,0.00018166,2]
[368742285,1751341833035,-547.12,0.00018166,2]
[368742286,1751341833045,-460.0,0.00018166,2]
[368742287,1751341833174,-460.0,0.00018166,2]
[368742288,1751341833186,-460.0,0.00018166,2]
[368742289,1751341833198,-460.0,0.00018166,2]
[368742290,1751341833208,-460.0,0.00018166,2]
[368742291,1751341833218,-460.0,0.00018166,2]
[368742292,1751341833228,-460.0,0.00018166,2]
[368742293,1751341833239,-460.0,0.00018166,2]
[368742294,1751341833249,-460.0,0.00018166,2]
[368742295,1751341833259,-1296.97,0.00018166,2]
[368742296,1751341833269,-500.0,0.00018166,2]
[368742297,1751341833280,-460.0,0.00018166,2]
[368742298,1751341833290,-460.0,0.00018166,2]
[368742299,1751341833301,-460.0,0.00018166,2]
[368742300,1751341833311,-460.0,0.00018166,2]
[368742301,1751341833323,-1745.13,0.00018166,2]
[368742302,1751341833332,-460.0,0.00018166,2]
[368742303,1751341833342,-460.0,0.00018166,2]
[368742304,1751341833353,-460.0,0.00018166,2]
[368742305,1751341833363,-460.0,0.00018166,2]
[368742306,1751341833374,-460.0,0.00018166,2]
[368742307,1751341833384,-541.81,0.00018166,2]
[368742308,1751341833394,-460.0,0.00018166,2]
[368742309,1751341833405,-460.0,0.00018166,2]
[368742310,1751341833416,-460.0,0.00018166,2]
[368742311,1751341833425,-460.0,0.00018166,2]
[368742312,1751341833435,-460.0,0.00018166,2]
[368742313,1751341833445,-460.0,0.00018166,2]
[368742314,1751341833455,-460.0,0.00018166,2]
[368742315,1751341833466,-500.0,0.00018166,2]
[368742316,1751341833477,-460.0,0.00018166,2]
[368742317,1751341833487,-460.0,0.00018166,2]
[368742318,1751341833497,-581.75,0.00018166,2]
[368742319,1751341833507,-460.0,0.00018166,2]
[368742320,1751341833518,-1406.41,0.00018166,2]
[368742321,1751341833527,-460.0,0.00018166,2]
[368742322,1751341833538,-460.0,0.00018166,2]
[368742323,1751341833548,-460.0,0.00018166,2]
[368742324,1751341833558,-461.28444785,0.00018166,2]
[368742325,1751341833569,-1241.9,0.00018166,2]
[368742326,1751341833580,-460.0,0.00018166,2]
[368742327,1751341833590,-2046.37,0.00018166,2]
[368742328,1751341833600,-465.04997535,0.00018166,2]